[Event "*** Titled Tuesday Blitz"]
[Site "Chess.com"]
[Date "2021.03.09"]
[Round "9"]
[White "StockholmMissile"]
[Black "TigrVShlyape"]
[Result "1-0"]
[WhiteElo "2587"]
[BlackElo "2818"]
[TimeControl "180+1"]
[EndTime "11:48:41 PST"]
[Termination "StockholmMissile won on time"]

1. d4 {[%clk 0:03:00.9]} 1... Nf6 {[%clk 0:02:57.7]} 2. c4 {[%clk 0:02:58.9]}
2... g6 {[%clk 0:02:57.8]} 3. Nc3 {[%clk 0:02:58.9]} 3... Bg7 {[%clk 0:02:57.8]}
4. e4 {[%clk 0:02:59.1]} 4... d6 {[%clk 0:02:58.4]} 5. h3 {[%clk 0:02:58.4]}
5... e5 {[%clk 0:02:57.9]} 6. d5 {[%clk 0:02:57.3]} 6... Na6 {[%clk 0:02:57.8]}
7. g4 {[%clk 0:02:49.6]} 7... Nc5 {[%clk 0:02:57.5]} 8. f3 {[%clk 0:02:49.9]}
8... a5 {[%clk 0:02:52.4]} 9. Nge2 {[%clk 0:02:49]} 9... h5 {[%clk 0:02:51.7]}
10. g5 {[%clk 0:02:46.4]} 10... Nh7 {[%clk 0:02:51.9]} 11. Rg1 {[%clk
0:02:41.2]} 11... f6 {[%clk 0:02:51.3]} 12. gxf6 {[%clk 0:02:29.8]} 12... Qxf6
{[%clk 0:02:50.5]} 13. Be3 {[%clk 0:02:18.2]} 13... Bd7 {[%clk 0:02:46.4]} 14.
Qd2 {[%clk 0:02:16.3]} 14... O-O {[%clk 0:02:23]} 15. O-O-O {[%clk 0:02:12.2]}
15... a4 {[%clk 0:02:16.4]} 16. Bg2 {[%clk 0:01:56.3]} 16... Rab8 {[%clk
0:01:41.5]} 17. Rdf1 {[%clk 0:01:52.4]} 17... b5 {[%clk 0:01:40.1]} 18. cxb5
{[%clk 0:01:52.1]} 18... Bxb5 {[%clk 0:01:40.1]} 19. Nxb5 {[%clk 0:01:44.8]}
19... Rxb5 {[%clk 0:01:40]} 20. Nc3 {[%clk 0:01:45.2]} 20... Rb4 {[%clk
0:01:38.3]} 21. Rf2 {[%clk 0:01:17.7]} 21... Rfb8 {[%clk 0:01:35.7]} 22. Qd1
{[%clk 0:01:15.5]} 22... Qf8 {[%clk 0:01:34.5]} 23. Bf1 {[%clk 0:01:11.8]} 23...
Qf7 {[%clk 0:01:23.9]} 24. Rfg2 {[%clk 0:01:10.4]} 24... Nf8 {[%clk 0:01:23.9]}
25. Bd3 {[%clk 0:00:46.7]} 25... Nxd3+ {[%clk 0:01:16.7]} 26. Qxd3 {[%clk
0:00:46.2]} 26... Qxf3 {[%clk 0:01:14.8]} 27. Rg3 {[%clk 0:00:40.4]} 27... Qf7
{[%clk 0:01:11]} 28. Rf1 {[%clk 0:00:39.6]} 28... Qe8 {[%clk 0:01:09.3]} 29. Rg2
{[%clk 0:00:37.3]} 29... Nh7 {[%clk 0:01:02.2]} 30. a3 {[%clk 0:00:34]} 30...
Rb3 {[%clk 0:00:58.6]} 31. Qc4 {[%clk 0:00:33.9]} 31... R8b7 {[%clk 0:00:56.3]}
32. Rfg1 {[%clk 0:00:33]} 32... Nf8 {[%clk 0:00:54.3]} 33. Rg3 {[%clk 0:00:19]}
33... Kh7 {[%clk 0:00:50.1]} 34. Qc6 {[%clk 0:00:18.3]} 34... Qxc6 {[%clk
0:00:38.2]} 35. dxc6 {[%clk 0:00:19.2]} 35... Rxc3+ {[%clk 0:00:37.7]} 36. bxc3
{[%clk 0:00:17.9]} 36... Rb3 {[%clk 0:00:37.9]} 37. Kc2 {[%clk 0:00:13.3]} 37...
Rxa3 {[%clk 0:00:37.5]} 38. Rb1 {[%clk 0:00:13.3]} 38... Bh6 {[%clk 0:00:30.2]}
39. Bxh6 {[%clk 0:00:10.5]} 39... Kxh6 {[%clk 0:00:30.1]} 40. Rf3 {[%clk
0:00:10.7]} 40... Ne6 {[%clk 0:00:29.4]} 41. Rf7 {[%clk 0:00:10.4]} 41... Ra2+
{[%clk 0:00:26.3]} 42. Rb2 {[%clk 0:00:10.1]} 42... Ra1 {[%clk 0:00:15.3]} 43.
Re7 {[%clk 0:00:10]} 43... a3 {[%clk 0:00:15.6]} 44. Rb8 {[%clk 0:00:06.2]}
44... Nc5 {[%clk 0:00:12.4]} 45. h4 {[%clk 0:00:04.5]} 45... g5 {[%clk
0:00:05.6]} 46. hxg5+ {[%clk 0:00:04.7]} 46... Kxg5 {[%clk 0:00:05.8]} 47. Rxc7
{[%clk 0:00:05.5]} 47... Ra2+ {[%clk 0:00:05.4]} 48. Kb1 {[%clk 0:00:04.4]}
48... Rd2 {[%clk 0:00:04.8]} 49. Rg7+ {[%clk 0:00:03.4]} 49... Kf4 {[%clk
0:00:01.9]} 50. c7 {[%clk 0:00:03.4]} 1-0

[Event "*** Titled Tuesday Blitz"]
[Site "Chess.com"]
[Date "2021.03.09"]
[Round "9"]
[White "Kretov_Evgenij"]
[Black "Fy_Rakotomaharo"]
[Result "1/2-1/2"]
[WhiteElo "2560"]
[BlackElo "2717"]
[TimeControl "180+1"]
[EndTime "11:48:42 PST"]
[Termination "Game drawn by stalemate"]

1. d4 {[%clk 0:03:00.9]} 1... Nf6 {[%clk 0:02:59.5]} 2. c4 {[%clk 0:03:00.8]}
2... g6 {[%clk 0:02:58.9]} 3. Nc3 {[%clk 0:03:00.9]} 3... Bg7 {[%clk 0:02:59.4]}
4. e4 {[%clk 0:03:01.2]} 4... d6 {[%clk 0:03:00]} 5. Be2 {[%clk 0:03:01.2]} 5...
O-O {[%clk 0:03:00]} 6. Bg5 {[%clk 0:03:01.7]} 6... h6 {[%clk 0:02:55.5]} 7. Be3
{[%clk 0:03:01]} 7... c5 {[%clk 0:02:55.7]} 8. e5 {[%clk 0:03:01.1]} 8... Nfd7
{[%clk 0:02:48.3]} 9. exd6 {[%clk 0:03:00.1]} 9... exd6 {[%clk 0:02:45.4]} 10.
Nf3 {[%clk 0:03:00]} 10... Nc6 {[%clk 0:02:44.5]} 11. O-O {[%clk 0:02:59.8]}
11... b6 {[%clk 0:02:15]} 12. Qd2 {[%clk 0:02:57]} 12... Kh7 {[%clk 0:02:14.2]}
13. Rfe1 {[%clk 0:02:51.6]} 13... Nf6 {[%clk 0:02:13.2]} 14. h3 {[%clk 0:02:42]}
14... Bf5 {[%clk 0:02:11.4]} 15. d5 {[%clk 0:02:32.9]} 15... Na5 {[%clk
0:02:06.5]} 16. g4 {[%clk 0:02:29.8]} 16... Ne4 {[%clk 0:02:01.9]} 17. Nxe4
{[%clk 0:02:27.4]} 17... Bxe4 {[%clk 0:02:01.9]} 18. Nh2 {[%clk 0:02:21.9]}
18... Qh4 {[%clk 0:01:49.7]} 19. Bf1 {[%clk 0:02:19.3]} 19... Be5 {[%clk
0:01:37.9]} 20. Bf4 {[%clk 0:02:15.1]} 20... f5 {[%clk 0:01:18.1]} 21. Bxe5
{[%clk 0:02:12.7]} 21... dxe5 {[%clk 0:01:18.2]} 22. f3 {[%clk 0:02:12.7]} 22...
Qg3+ {[%clk 0:01:08.7]} 23. Qg2 {[%clk 0:02:11.4]} 23... Qxg2+ {[%clk
0:01:03.3]} 24. Kxg2 {[%clk 0:02:09.9]} 24... Bc2 {[%clk 0:01:00.6]} 25. Rxe5
{[%clk 0:02:04.6]} 25... fxg4 {[%clk 0:01:00.5]} 26. hxg4 {[%clk 0:02:00.8]}
26... g5 {[%clk 0:00:55.8]} 27. Rae1 {[%clk 0:01:59.1]} 27... Rf7 {[%clk
0:00:55]} 28. Re7 {[%clk 0:01:55.9]} 28... Kg7 {[%clk 0:00:53.9]} 29. R1e6
{[%clk 0:01:49.9]} 29... Rf8 {[%clk 0:00:51]} 30. Be2 {[%clk 0:01:49.4]} 30...
Bb1 {[%clk 0:00:48.6]} 31. a3 {[%clk 0:01:42.4]} 31... Ba2 {[%clk 0:00:48.8]}
32. d6 {[%clk 0:01:37.2]} 32... Nxc4 {[%clk 0:00:42.9]} 33. d7 {[%clk
0:01:32.5]} 33... Rd8 {[%clk 0:00:43.1]} 34. Rxf7+ {[%clk 0:01:18.4]} 34... Kxf7
{[%clk 0:00:44]} 35. Rxh6 {[%clk 0:01:14.2]} 35... Rxd7 {[%clk 0:00:42.2]} 36.
Rh7+ {[%clk 0:01:11]} 36... Ke6 {[%clk 0:00:40.6]} 37. Rxd7 {[%clk 0:01:07.4]}
37... Kxd7 {[%clk 0:00:41.5]} 38. Bxc4 {[%clk 0:01:07.2]} 38... Bxc4 {[%clk
0:00:42.4]} 39. f4 {[%clk 0:01:05.4]} 39... gxf4 {[%clk 0:00:35.4]} 40. Kf3
{[%clk 0:01:05.5]} 40... b5 {[%clk 0:00:32.3]} 41. Kxf4 {[%clk 0:01:03.5]} 41...
b4 {[%clk 0:00:32.7]} 42. Ke5 {[%clk 0:00:59.9]} 42... Be2 {[%clk 0:00:29]} 43.
Kd5 {[%clk 0:00:43]} 43... bxa3 {[%clk 0:00:28.3]} 44. bxa3 {[%clk 0:00:43.3]}
44... c4 {[%clk 0:00:28.7]} 45. Kd4 {[%clk 0:00:43.7]} 45... Ke6 {[%clk
0:00:19.7]} 46. Ke3 {[%clk 0:00:42]} 46... Bd3 {[%clk 0:00:17.4]} 47. Nf3 {[%clk
0:00:40.5]} 47... Kf6 {[%clk 0:00:13.4]} 48. Kd4 {[%clk 0:00:39]} 48... Be2
{[%clk 0:00:12.5]} 49. Ne5 {[%clk 0:00:39.2]} 49... a6 {[%clk 0:00:07.3]} 50.
Nxc4 {[%clk 0:00:36.3]} 50... Bxg4 {[%clk 0:00:07.2]} 51. Kc5 {[%clk 0:00:36.1]}
51... Ke7 {[%clk 0:00:07]} 52. Kb6 {[%clk 0:00:35.9]} 52... Be2 {[%clk
0:00:07.2]} 53. Ne5 {[%clk 0:00:32]} 53... Kd8 {[%clk 0:00:06.8]} 54. Nc6+
{[%clk 0:00:29.1]} 54... Kc8 {[%clk 0:00:06.5]} 55. a4 {[%clk 0:00:29.4]} 55...
Bd1 {[%clk 0:00:05.2]} 56. a5 {[%clk 0:00:29.2]} 56... Be2 {[%clk 0:00:05.8]}
57. Ka7 {[%clk 0:00:28.1]} 57... Kc7 {[%clk 0:00:05.8]} 58. Nb4 {[%clk
0:00:28.3]} 58... Bb5 {[%clk 0:00:04.3]} 59. Nxa6+ {[%clk 0:00:28.1]} 59... Bxa6
{[%clk 0:00:04.3]} 60. Kxa6 {[%clk 0:00:28.4]} 60... Kb8 {[%clk 0:00:05.2]} 61.
Kb6 {[%clk 0:00:28.2]} 61... Ka8 {[%clk 0:00:06.1]} 62. a6 {[%clk 0:00:28.7]}
62... Kb8 {[%clk 0:00:07]} 63. a7+ {[%clk 0:00:29.1]} 63... Ka8 {[%clk
0:00:07.9]} 64. Ka6 {[%clk 0:00:29.6]} 1/2-1/2

[Event "*** Titled Tuesday Blitz"]
[Site "Chess.com"]
[Date "2021.03.09"]
[Round "9"]
[White "Iskusnyh"]
[Black "Mihnea2017"]
[Result "1-0"]
[WhiteElo "2611"]
[BlackElo "2499"]
[TimeControl "180+1"]
[EndTime "11:48:42 PST"]
[Termination "Iskusnyh won on time"]

1. d4 {[%clk 0:02:57]} 1... Nf6 {[%clk 0:02:59.5]} 2. c4 {[%clk 0:02:57.5]} 2...
e6 {[%clk 0:02:59.6]} 3. g3 {[%clk 0:02:58.1]} 3... d5 {[%clk 0:02:58.2]} 4. Nf3
{[%clk 0:02:57.7]} 4... dxc4 {[%clk 0:02:58]} 5. Bg2 {[%clk 0:02:57.4]} 5... c5
{[%clk 0:02:57.8]} 6. Na3 {[%clk 0:02:52.3]} 6... Nc6 {[%clk 0:02:42.2]} 7. Nxc4
{[%clk 0:02:50.9]} 7... cxd4 {[%clk 0:02:41.5]} 8. O-O {[%clk 0:02:48.8]} 8...
Be7 {[%clk 0:02:34.3]} 9. Bf4 {[%clk 0:02:43.2]} 9... O-O {[%clk 0:02:28.7]} 10.
Nfe5 {[%clk 0:02:41.2]} 10... Bd7 {[%clk 0:02:23.5]} 11. Rc1 {[%clk 0:02:32.5]}
11... Rc8 {[%clk 0:02:23.1]} 12. Qb3 {[%clk 0:02:23.9]} 12... Nxe5 {[%clk
0:02:01.2]} 13. Nxe5 {[%clk 0:02:09.9]} 13... b6 {[%clk 0:01:49.5]} 14. Rfd1
{[%clk 0:01:59.6]} 14... Rxc1 {[%clk 0:01:44.3]} 15. Rxc1 {[%clk 0:01:57.9]}
15... Be8 {[%clk 0:01:09.8]} 16. Nc6 {[%clk 0:01:45.7]} 16... Bxc6 {[%clk
0:01:09]} 17. Rxc6 {[%clk 0:01:45]} 17... Nh5 {[%clk 0:00:53.6]} 18. Bd2 {[%clk
0:01:37]} 18... Bg5 {[%clk 0:00:37.2]} 19. Bb4 {[%clk 0:01:26]} 19... Be7 {[%clk
0:00:35.8]} 20. Bd2 {[%clk 0:01:00.2]} 20... Nf6 {[%clk 0:00:31.4]} 21. Bf3
{[%clk 0:00:54.1]} 21... h6 {[%clk 0:00:24.2]} 22. Bf4 {[%clk 0:00:51.8]} 22...
Bc5 {[%clk 0:00:23.7]} 23. Qc4 {[%clk 0:00:28.2]} 23... Nd7 {[%clk 0:00:20]} 24.
b4 {[%clk 0:00:25.7]} 24... e5 {[%clk 0:00:11.4]} 25. bxc5 {[%clk 0:00:20.9]}
25... exf4 {[%clk 0:00:11.5]} 26. Rd6 {[%clk 0:00:20.6]} 26... bxc5 {[%clk
0:00:10.9]} 27. Qd5 {[%clk 0:00:19.3]} 27... Qa5 {[%clk 0:00:09.5]} 28. Rxd7
{[%clk 0:00:18.4]} 28... fxg3 {[%clk 0:00:10]} 29. hxg3 {[%clk 0:00:18.1]} 29...
g6 {[%clk 0:00:10.2]} 30. Qd6 {[%clk 0:00:14.9]} 30... Kg7 {[%clk 0:00:09.8]}
31. Qe5+ {[%clk 0:00:13.7]} 31... Kg8 {[%clk 0:00:09.4]} 32. Qf6 {[%clk
0:00:13.8]} 32... Qxa2 {[%clk 0:00:08.1]} 33. Bd5 {[%clk 0:00:12.8]} 33... Qb1+
{[%clk 0:00:08.6]} 34. Kg2 {[%clk 0:00:12.1]} 34... Qf5 {[%clk 0:00:08.7]} 35.
Qxf5 {[%clk 0:00:10]} 35... gxf5 {[%clk 0:00:09]} 36. Rxa7 {[%clk 0:00:10]}
36... Kg7 {[%clk 0:00:09.1]} 37. Bc4 {[%clk 0:00:09.6]} 37... Kg6 {[%clk
0:00:08.7]} 38. Rc7 {[%clk 0:00:09.5]} 38... f4 {[%clk 0:00:08.9]} 39. gxf4
{[%clk 0:00:08.8]} 39... Kf5 {[%clk 0:00:08.3]} 40. Kf3 {[%clk 0:00:08.9]} 40...
f6 {[%clk 0:00:07.8]} 41. Rxc5+ {[%clk 0:00:08.5]} 41... Kg6 {[%clk 0:00:08.2]}
42. Rc7 {[%clk 0:00:08.6]} 42... h5 {[%clk 0:00:07.4]} 43. Bd3+ {[%clk
0:00:08.3]} 43... f5 {[%clk 0:00:05.9]} 44. Rd7 {[%clk 0:00:08.4]} 44... h4
{[%clk 0:00:05.2]} 45. Rxd4 {[%clk 0:00:08.3]} 45... h3 {[%clk 0:00:03.7]} 46.
Kg3 {[%clk 0:00:08.5]} 46... Rh8 {[%clk 0:00:04]} 47. Kh2 {[%clk 0:00:08.6]}
47... Kh5 {[%clk 0:00:03.6]} 48. Rd5 {[%clk 0:00:08.3]} 48... Kg4 {[%clk
0:00:03.2]} 49. Rxf5 {[%clk 0:00:08.3]} 49... Rd8 {[%clk 0:00:02.7]} 50. Rg5+
{[%clk 0:00:08.1]} 50... Kh4 {[%clk 0:00:02.8]} 51. Rg3 {[%clk 0:00:07.9]} 51...
Rd4 {[%clk 0:00:01.1]} 52. f5 {[%clk 0:00:07.9]} 1-0

[Event "*** Titled Tuesday Blitz"]
[Site "Chess.com"]
[Date "2021.03.09"]
[Round "9"]
[White "Margency"]
[Black "AliKa2810"]
[Result "1-0"]
[WhiteElo "2702"]
[BlackElo "2547"]
[TimeControl "180+1"]
[EndTime "11:48:43 PST"]
[Termination "Margency won on time"]

1. e4 {[%clk 0:03:00.9]} 1... c6 {[%clk 0:02:59.1]} 2. d4 {[%clk 0:03:00.6]}
2... d5 {[%clk 0:02:59.4]} 3. exd5 {[%clk 0:03:00.8]} 3... cxd5 {[%clk
0:02:59.2]} 4. c4 {[%clk 0:03:01.7]} 4... Nf6 {[%clk 0:02:58.5]} 5. Nc3 {[%clk
0:03:02.2]} 5... e6 {[%clk 0:02:55.7]} 6. Nf3 {[%clk 0:03:01.7]} 6... Bb4 {[%clk
0:02:54.6]} 7. cxd5 {[%clk 0:02:59.8]} 7... Nxd5 {[%clk 0:02:53.9]} 8. Bd2
{[%clk 0:02:59.7]} 8... O-O {[%clk 0:02:53.3]} 9. Bd3 {[%clk 0:02:59.5]} 9...
Nc6 {[%clk 0:02:49.7]} 10. O-O {[%clk 0:02:59.3]} 10... Nce7 {[%clk 0:02:33.5]}
11. Ne5 {[%clk 0:02:51.6]} 11... Bd6 {[%clk 0:02:24.3]} 12. Ne4 {[%clk
0:02:47.7]} 12... h6 {[%clk 0:02:08]} 13. Rc1 {[%clk 0:02:24.4]} 13... b6 {[%clk
0:02:05]} 14. Qf3 {[%clk 0:02:17.6]} 14... Bb7 {[%clk 0:02:03.2]} 15. Nxd6
{[%clk 0:02:03.4]} 15... Qxd6 {[%clk 0:02:02.7]} 16. Qg3 {[%clk 0:02:03.7]}
16... Nf5 {[%clk 0:01:53.4]} 17. Bxf5 {[%clk 0:01:53.9]} 17... exf5 {[%clk
0:01:54.3]} 18. Rfe1 {[%clk 0:01:33.3]} 18... Rac8 {[%clk 0:01:53.5]} 19. Bc3
{[%clk 0:01:26.2]} 19... Rfe8 {[%clk 0:01:19.9]} 20. h4 {[%clk 0:01:10.1]} 20...
f6 {[%clk 0:01:16.5]} 21. Ng6 {[%clk 0:01:06.2]} 21... Qxg3 {[%clk 0:01:08.3]}
22. fxg3 {[%clk 0:01:06.4]} 22... h5 {[%clk 0:00:52.8]} 23. Kf2 {[%clk 0:00:57]}
23... Re4 {[%clk 0:00:45.3]} 24. Rxe4 {[%clk 0:00:33]} 24... fxe4 {[%clk
0:00:46.2]} 25. Bd2 {[%clk 0:00:33.5]} 25... Rxc1 {[%clk 0:00:33.6]} 26. Bxc1
{[%clk 0:00:34.4]} 26... Nb4 {[%clk 0:00:33.9]} 27. Bf4 {[%clk 0:00:26.2]} 27...
Kf7 {[%clk 0:00:28.6]} 28. Nh8+ {[%clk 0:00:26]} 28... Ke6 {[%clk 0:00:27.7]}
29. Ke3 {[%clk 0:00:21.5]} 29... Nc2+ {[%clk 0:00:25.8]} 30. Kd2 {[%clk
0:00:20.7]} 30... Nxd4 {[%clk 0:00:26.5]} 31. Bb8 {[%clk 0:00:20.4]} 31... Nc6
{[%clk 0:00:20.5]} 32. Bf4 {[%clk 0:00:20.4]} 32... Kf5 {[%clk 0:00:17.9]} 33.
Nf7 {[%clk 0:00:20.3]} 33... Ke6 {[%clk 0:00:15.4]} 34. Nh8 {[%clk 0:00:19]}
34... Ba6 {[%clk 0:00:14.9]} 35. Ng6 {[%clk 0:00:18.9]} 35... Bd3 {[%clk
0:00:14.4]} 36. Be3 {[%clk 0:00:19]} 36... Kf5 {[%clk 0:00:12.1]} 37. Nf4 {[%clk
0:00:19.1]} 37... Bc4 {[%clk 0:00:12.6]} 38. Nxh5 {[%clk 0:00:19.2]} 38... Bxa2
{[%clk 0:00:12.2]} 39. Nxg7+ {[%clk 0:00:19.1]} 39... Kg6 {[%clk 0:00:12.5]} 40.
Ne8 {[%clk 0:00:19]} 40... Ne5 {[%clk 0:00:13]} 41. Nd6 {[%clk 0:00:17.7]} 41...
Bd5 {[%clk 0:00:11.9]} 42. Kc3 {[%clk 0:00:17.1]} 42... Ng4 {[%clk 0:00:08]} 43.
Kd4 {[%clk 0:00:17.1]} 43... Bc6 {[%clk 0:00:08]} 44. Nc8 {[%clk 0:00:17.1]}
44... f5 {[%clk 0:00:03.9]} 45. Nxa7 {[%clk 0:00:16.8]} 45... Bd7 {[%clk
0:00:04.4]} 46. b4 {[%clk 0:00:16.8]} 46... Kh5 {[%clk 0:00:02.9]} 47. b5 {[%clk
0:00:16.9]} 47... Nxe3 {[%clk 0:00:03.3]} 48. Kxe3 {[%clk 0:00:17.2]} 48... Kg4
{[%clk 0:00:04]} 49. Kf2 {[%clk 0:00:17.4]} 49... e3+ {[%clk 0:00:04.4]} 50.
Kxe3 {[%clk 0:00:17.8]} 50... Kxg3 {[%clk 0:00:05.1]} 51. h5 {[%clk 0:00:18.3]}
51... f4+ {[%clk 0:00:04.9]} 52. Ke4 {[%clk 0:00:18.6]} 52... Be8 {[%clk
0:00:03.8]} 53. h6 {[%clk 0:00:18.4]} 53... Bg6+ {[%clk 0:00:04.4]} 54. Ke5
{[%clk 0:00:19]} 54... Bh7 {[%clk 0:00:01.1]} 55. Nc8 {[%clk 0:00:18.8]} 55...
Bd3 {[%clk 0:00:01.5]} 56. Nxb6 {[%clk 0:00:18.9]} 1-0

[Event "*** Titled Tuesday Blitz"]
[Site "Chess.com"]
[Date "2021.03.09"]
[Round "9"]
[White "Ekose"]
[Black "Diamantidis_13"]
[Result "1-0"]
[WhiteElo "2517"]
[BlackElo "2369"]
[TimeControl "180+1"]
[EndTime "11:48:43 PST"]
[Termination "Ekose won by checkmate"]

1. d4 {[%clk 0:02:57.1]} 1... Nf6 {[%clk 0:02:59.1]} 2. Nf3 {[%clk 0:02:56.8]}
2... e6 {[%clk 0:02:47.8]} 3. e3 {[%clk 0:02:53.6]} 3... b6 {[%clk 0:02:48]} 4.
Nbd2 {[%clk 0:02:53.6]} 4... Bb7 {[%clk 0:02:45.5]} 5. Bd3 {[%clk 0:02:53.8]}
5... Be7 {[%clk 0:02:45.3]} 6. O-O {[%clk 0:02:53.7]} 6... O-O {[%clk
0:02:45.9]} 7. b3 {[%clk 0:02:53.7]} 7... c5 {[%clk 0:02:45.8]} 8. Bb2 {[%clk
0:02:53.5]} 8... cxd4 {[%clk 0:02:45.6]} 9. exd4 {[%clk 0:02:53.4]} 9... d5
{[%clk 0:02:43.8]} 10. Qe2 {[%clk 0:02:51.5]} 10... Nbd7 {[%clk 0:02:43.4]} 11.
Ne5 {[%clk 0:02:46.6]} 11... Nxe5 {[%clk 0:02:41.9]} 12. dxe5 {[%clk 0:02:46.4]}
12... Nd7 {[%clk 0:02:42.5]} 13. f4 {[%clk 0:02:45.8]} 13... Nc5 {[%clk
0:02:42.5]} 14. Nf3 {[%clk 0:02:41.9]} 14... Nxd3 {[%clk 0:02:41.7]} 15. cxd3
{[%clk 0:02:41.4]} 15... d4 {[%clk 0:02:42.2]} 16. Kh1 {[%clk 0:02:33.5]} 16...
Rc8 {[%clk 0:02:06.7]} 17. Nxd4 {[%clk 0:02:21.3]} 17... Qd5 {[%clk 0:02:00.8]}
18. Nf3 {[%clk 0:02:18.8]} 18... Rfd8 {[%clk 0:01:54.4]} 19. Rfd1 {[%clk
0:02:17.5]} 19... h6 {[%clk 0:01:40.6]} 20. h3 {[%clk 0:02:14.4]} 20... Rc7
{[%clk 0:01:36.2]} 21. d4 {[%clk 0:01:56.6]} 21... Qe4 {[%clk 0:01:23]} 22. Qxe4
{[%clk 0:01:47]} 22... Bxe4 {[%clk 0:01:23.9]} 23. Rac1 {[%clk 0:01:45.8]} 23...
Rdc8 {[%clk 0:01:14.2]} 24. Rxc7 {[%clk 0:01:40]} 24... Rxc7 {[%clk 0:01:15.1]}
25. Rc1 {[%clk 0:01:40]} 25... Rxc1+ {[%clk 0:01:05.9]} 26. Bxc1 {[%clk
0:01:40.9]} 26... b5 {[%clk 0:00:58.5]} 27. Be3 {[%clk 0:01:17]} 27... a6 {[%clk
0:00:46.4]} 28. Nd2 {[%clk 0:00:24.4]} 28... Bd5 {[%clk 0:00:44.4]} 29. Kg1
{[%clk 0:00:23.5]} 29... Bb4 {[%clk 0:00:44.3]} 30. Kf2 {[%clk 0:00:22.2]} 30...
a5 {[%clk 0:00:40.9]} 31. g4 {[%clk 0:00:22]} 31... a4 {[%clk 0:00:39.2]} 32.
Ke2 {[%clk 0:00:19.5]} 32... Bxd2 {[%clk 0:00:18.6]} 33. Kxd2 {[%clk 0:00:16.4]}
33... axb3 {[%clk 0:00:18.5]} 34. axb3 {[%clk 0:00:16.5]} 34... Bxb3 {[%clk
0:00:19.4]} 35. Kc3 {[%clk 0:00:15.5]} 35... Bd5 {[%clk 0:00:20]} 36. Kb4 {[%clk
0:00:15]} 36... Bc4 {[%clk 0:00:20.1]} 37. h4 {[%clk 0:00:08.8]} 37... h5 {[%clk
0:00:19.3]} 38. gxh5 {[%clk 0:00:08]} 38... Kh7 {[%clk 0:00:19.5]} 39. f5 {[%clk
0:00:06.7]} 39... exf5 {[%clk 0:00:19.5]} 40. Kc5 {[%clk 0:00:06.6]} 40... Kg8
{[%clk 0:00:17.1]} 41. d5 {[%clk 0:00:06.5]} 41... Kf8 {[%clk 0:00:17.7]} 42. d6
{[%clk 0:00:04]} 42... Be6 {[%clk 0:00:16.9]} 43. Kxb5 {[%clk 0:00:03.3]} 43...
Ke8 {[%clk 0:00:15.9]} 44. Kc6 {[%clk 0:00:03.8]} 44... Bd7+ {[%clk 0:00:15.7]}
45. Kc7 {[%clk 0:00:03.5]} 45... Ba4 {[%clk 0:00:16.4]} 46. h6 {[%clk
0:00:03.7]} 46... gxh6 {[%clk 0:00:15.3]} 47. Bxh6 {[%clk 0:00:04.6]} 47... Bb5
{[%clk 0:00:10.5]} 48. Bg5 {[%clk 0:00:04.7]} 48... Ba4 {[%clk 0:00:08.5]} 49.
h5 {[%clk 0:00:05]} 49... f4 {[%clk 0:00:09.1]} 50. h6 {[%clk 0:00:04]} 50... f6
{[%clk 0:00:06.6]} 51. h7 {[%clk 0:00:03.4]} 51... f3 {[%clk 0:00:07.3]} 52.
h8=Q+ {[%clk 0:00:03.5]} 52... Kf7 {[%clk 0:00:08.2]} 53. Qxf6+ {[%clk
0:00:03.7]} 53... Kg8 {[%clk 0:00:09.1]} 54. Qg6+ {[%clk 0:00:03.9]} 54... Kf8
{[%clk 0:00:10]} 55. Bh6# {[%clk 0:00:04.1]} 1-0